fUSD/lending_fUSD_20250623
["ID","MTS","AMOUNT","RATE_DAILY","PERIOD"]
[367130837,1750665075859,-490.0,0.00027945,3]
[367130838,1750665075868,-490.0,0.00027945,3]
[367130839,1750665075878,-490.0,0.00027945,3]
[367130840,1750665075887,-668.01,0.00027945,3]
[367130841,1750665075897,-490.0,0.00027945,3]
[367130842,1750665075907,-333.46149932,0.00027945,3]
[367130843,1750665075916,-490.0,0.00027945,3]
[367130844,1750665075928,-490.0,0.00027945,3]
[367130845,1750665075937,-712.2,0.00027945,3]
[367130846,1750665075947,-490.0,0.00027945,3]
[367130847,1750665075957,-490.0,0.00027945,3]
[367130848,1750665075966,-598.16,0.00027945,3]
[367130849,1750665075976,-490.0,0.00027945,3]
[367130850,1750665075986,-708.42,0.00027945,3]
[367130851,1750665075996,-904.35,0.00027945,3]
[367130852,1750665076006,-490.0,0.00027945,3]
[367130853,1750665076016,-490.0,0.00027945,3]
[367130854,1750665076025,-490.0,0.00027945,3]
[367130855,1750665076034,-490.0,0.00027945,3]
[367130856,1750665076044,-490.0,0.00027945,3]
[367130857,1750665076053,-490.0,0.00027945,3]
[367130858,1750665076063,-490.0,0.00027945,3]
[367130859,1750665076072,-490.0,0.00027945,3]
[367130860,1750665076082,-490.0,0.00027945,3]
[367130861,1750665076092,-490.0,0.00027945,3]
[367130862,1750665076102,-490.0,0.00027945,3]
[367130863,1750665076111,-490.0,0.00027945,3]
[367130864,1750665076121,-490.0,0.00027945,3]
[367130865,1750665076131,-490.0,0.00027945,3]
[367130866,1750665076140,-496.37333264,0.00027945,3]
[367130867,1750665076150,-490.0,0.00027945,3]
[367130868,1750665076160,-490.0,0.00027945,3]
[367130869,1750665076170,-490.0,0.00027945,3]
[367130870,1750665076179,-936.53,0.00027945,3]
[367130871,1750665076189,-490.0,0.00027945,3]
[367130872,1750665076198,-490.0,0.00027945,3]
[367130873,1750665076208,-490.0,0.00027945,3]
[367130874,1750665076218,-490.0,0.00027945,3]
[367130875,1750665076227,-490.0,0.00027945,3]
[367130876,1750665076237,-500.8926651,0.00027945,3]
[367130877,1750665076247,-490.0,0.00027945,3]
[367130878,1750665076256,-415.91540684,0.00027945,3]
[367130879,1750665076266,-490.0,0.00027945,3]
[367130880,1750665076276,-490.0,0.00027945,3]
[367130881,1750665076286,-490.0,0.00027945,3]
[367130882,1750665076295,-490.0,0.00027945,3]
[367130883,1750665076304,-490.0,0.00027945,3]
[367130884,1750665076314,-490.0,0.00027945,3]
[367130885,1750665076323,-490.0,0.00027945,3]
[367130886,1750665076333,-898.51,0.00027945,3]
[367130887,1750665076343,-934.07,0.00027945,3]
[367130888,1750665076354,-337.75479139,0.00027945,3]
[367130889,1750665076364,-490.0,0.00027945,3]
[367130890,1750665076374,-490.0,0.00027945,3]
[367130891,1750665076385,-490.0,0.00027945,3]
[367130892,1750665076395,-1055.8,0.00027945,3]
[367130893,1750665076405,-490.0,0.00027945,3]
[367130894,1750665076417,-490.0,0.00027945,3]
[367130895,1750665076428,-490.0,0.00027945,3]
[367130896,1750665076438,-490.0,0.00027945,3]
[367130897,1750665076449,-490.0,0.00027945,3]
[367130898,1750665076459,-490.0,0.00027945,3]
[367130899,1750665076470,-511.53,0.00027945,3]
[367130900,1750665076480,-490.0,0.00027945,3]
[367130901,1750665076490,-490.0,0.00027945,3]
[367130902,1750665076500,-490.0,0.00027945,3]
[367130903,1750665076510,-490.0,0.00027945,3]
[367130904,1750665076520,-490.0,0.00027945,3]
[367130905,1750665076529,-414.7155134,0.00027945,3]
[367130906,1750665076538,-490.0,0.00027945,3]
[367130907,1750665076548,-256.82784121,0.00027945,3]
[367130908,1750665076558,-490.0,0.00027945,3]
[367130909,1750665076567,-490.0,0.00027945,3]
[367130910,1750665076576,-600.83,0.00027945,3]
[367130911,1750665076586,-490.0,0.00027945,3]
[367130912,1750665076596,-490.0,0.00027945,3]
[367130913,1750665076606,-490.0,0.00027945,3]
[367130914,1750665076616,-588.13,0.00027945,3]
[367130915,1750665076625,-386.62295679,0.00027945,3]
[367130916,1750665076634,-490.0,0.00027945,3]
[367130917,1750665076644,-311.43817479,0.00027945,3]
[367130918,1750665076653,-609.58282837,0.00027945,3]
[367130919,1750665076662,-490.0,0.00027945,3]
[367130920,1750665076671,-490.0,0.00027945,3]
[367130921,1750665076681,-490.0,0.00027945,3]
[367130922,1750665076690,-490.0,0.00027945,3]
[367130923,1750665076699,-490.0,0.00027945,3]
[367130924,1750665076709,-490.0,0.00027945,3]
[367130925,1750665076719,-490.0,0.00027945,3]
[367130926,1750665076728,-852.34,0.00027945,3]
[367130927,1750665076738,-490.0,0.00027945,3]
[367130928,1750665076748,-490.0,0.00027945,3]
[367130929,1750665076757,-490.0,0.00027945,3]
[367130930,1750665076767,-490.0,0.00027945,3]
[367130931,1750665076777,-490.0,0.00027945,3]
[367130932,1750665076787,-490.0,0.00027945,3]
[367130933,1750665076796,-490.0,0.00027945,3]
[367130934,1750665076805,-972.8,0.00027945,3]
[367130935,1750665076814,-490.0,0.00027945,3]
[367130936,1750665076824,-490.0,0.00027945,3]
[367130937,1750665076834,-490.0,0.00027945,3]
[367130938,1750665076843,-613.97,0.00027945,3]
[367130939,1750665076853,-490.0,0.00027945,3]
[367130940,1750665076862,-490.0,0.00027945,3]
[367130941,1750665076871,-490.0,0.00027945,3]
[367130942,1750665076882,-490.0,0.00027945,3]
[367130943,1750665076892,-490.0,0.00027945,3]
[367130944,1750665076901,-490.0,0.00027945,3]
[367130945,1750665076911,-490.0,0.00027945,3]
[367130946,1750665076920,-490.0,0.00027945,3]
[367130947,1750665076934,-490.0,0.00027945,3]
[367130948,1750665076944,-490.0,0.00027945,3]
[367130949,1750665076953,-490.0,0.00027945,3]
[367130950,1750665076962,-490.0,0.00027945,3]
[367130951,1750665076973,-490.0,0.00027945,3]
[367130952,1750665076982,-490.0,0.00027945,3]
[367130953,1750665076992,-490.0,0.00027945,3]
[367130954,1750665077331,-490.0,0.00027945,3]
[367130955,1750665077341,-490.0,0.00027945,3]
[367130956,1750665077351,-490.0,0.00027945,3]
[367130957,1750665077361,-490.0,0.00027945,3]
[367130958,1750665077370,-490.0,0.00027945,3]
[367130959,1750665077380,-490.0,0.00027945,3]
[367130960,1750665077391,-490.0,0.00027945,3]
[367130961,1750665077401,-490.0,0.00027945,3]
[367130962,1750665077411,-490.0,0.00027945,3]
[367130963,1750665077421,-490.0,0.00027945,3]
[367130964,1750665077431,-357.42415874,0.00027945,3]
[367130965,1750665077441,-950.12,0.00027945,3]
[367130966,1750665077450,-524.762286,0.00027945,3]
[367130967,1750665077460,-490.0,0.00027945,3]
[367130968,1750665077469,-490.0,0.00027945,3]
[367130969,1750665077479,-490.0,0.00027945,3]
[367130970,1750665077489,-490.0,0.00027945,3]
[367130971,1750665077499,-490.0,0.00027945,3]
[367130972,1750665077509,-490.0,0.00027945,3]
[367130973,1750665077519,-490.0,0.00027945,3]
[367130974,1750665077529,-490.0,0.00027945,3]
[367130975,1750665077539,-732.25,0.00027945,3]
[367130976,1750665077548,-678.97,0.00027945,3]
[367130977,1750665077558,-490.0,0.00027945,3]
[367130978,1750665077568,-490.0,0.00027945,3]
[367130979,1750665077577,-490.0,0.00027945,3]
[367130980,1750665077586,-838.48,0.00027945,3]
[367130981,1750665077596,-490.0,0.00027945,3]
[367130982,1750665077606,-490.0,0.00027945,3]
[367130983,1750665077617,-699.02,0.00027945,3]
[367130984,1750665077627,-490.0,0.00027945,3]
[367130985,1750665077638,-564.25,0.00027945,3]
[367130986,1750665077649,-490.0,0.00027945,3]
[367130987,1750665077658,-1071.68,0.00027945,3]
[367130988,1750665077668,-490.0,0.00027945,3]
[367130989,1750665077678,-490.0,0.00027945,3]
[367130990,1750665077689,-699.34,0.00027945,3]
[367130991,1750665077699,-662.89,0.00027945,3]
[367130992,1750665077709,-564.94,0.00027945,3]
[367130993,1750665077719,-490.0,0.00027945,3]
[367130994,1750665077729,-490.0,0.00027945,3]
[367130995,1750665077738,-490.0,0.00027945,3]
[367130996,1750665077748,-490.0,0.00027945,3]
[367130997,1750665077758,-490.0,0.00027945,3]
[367130998,1750665077767,-490.0,0.00027945,3]
[367130999,1750665077777,-1230.15,0.00027945,3]
[367131000,1750665077787,-490.0,0.00027945,3]
[367131001,1750665077796,-348.13174841,0.00027945,3]
[367131002,1750665077807,-490.0,0.00027945,3]
[367131003,1750665077817,-582.52,0.00027945,3]
[367131004,1750665077827,-528.60492852,0.00027945,3]
[367131005,1750665077837,-490.0,0.00027945,3]
[367131006,1750665077847,-943.42,0.00027945,3]
[367131007,1750665077857,-490.0,0.00027945,3]
[367131008,1750665077867,-490.0,0.00027945,3]
[367131009,1750665077876,-999.65,0.00027945,3]
[367131010,1750665077886,-490.0,0.00027945,3]
[367131011,1750665077896,-490.0,0.00027945,3]
[367131012,1750665077906,-490.0,0.00027945,3]
[367131013,1750665077916,-490.0,0.00027945,3]
[367131014,1750665077928,-490.0,0.00027945,3]
[367131015,1750665077937,-285.97766565,0.00027945,3]
[367131016,1750665077946,-490.0,0.00027945,3]
[367131017,1750665077956,-490.0,0.00027945,3]
[367131018,1750665077965,-490.0,0.00027945,3]
[367131019,1750665077974,-490.0,0.00027945,3]
[367131020,1750665077983,-1066.85,0.00027945,3]
[367131021,1750665077992,-1100.39,0.00027945,3]
[367131022,1750665078002,-490.0,0.00027945,3]
[367131023,1750665078012,-629.46,0.00027945,3]
[367131024,1750665078021,-490.0,0.00027945,3]
[367131025,1750665078030,-490.0,0.00027945,3]
[367131026,1750665078039,-620.31,0.00027945,3]
[367131027,1750665078049,-490.0,0.00027945,3]
[367131028,1750665078058,-834.77,0.00027945,3]
[367131029,1750665078067,-490.0,0.00027945,3]
[367131030,1750665078076,-861.89,0.00027945,3]
[367131031,1750665078086,-490.0,0.00027945,3]
[367131032,1750665078096,-500.99,0.00027945,3]
[367131033,1750665078106,-629.12,0.00027945,3]
[367131034,1750665078115,-1274.6,0.00027945,3]
[367131035,1750665078125,-1305.62,0.00027945,3]
[367131036,1750665078135,-557.46,0.00027945,3]
[367131037,1750665078145,-490.0,0.00027945,3]
[367131038,1750665078154,-774.41,0.00027945,3]
[367131039,1750665078164,-549.68,0.00027945,3]
[367131040,1750665078173,-490.0,0.00027945,3]
[367131041,1750665078182,-630.81,0.00027945,3]
[367131042,1750665078191,-1051.6,0.00027945,3]
[367131043,1750665078200,-393.25153122,0.00027945,3]
[367131044,1750665078210,-490.0,0.00027945,3]
[367131045,1750665078219,-559.89,0.00027945,3]
[367131046,1750665078228,-1923.63,0.00027945,3]
[367131047,1750665078238,-490.0,0.00027945,3]
[367131048,1750665078247,-490.0,0.00027945,3]
[367131049,1750665078257,-574.93,0.00027945,3]
[367131050,1750665078266,-490.0,0.00027945,3]
[367131051,1750665078276,-490.0,0.00027945,3]
[367131052,1750665078286,-490.0,0.00027945,3]
[367131053,1750665078296,-1572.34,0.00027945,3]
[367131054,1750665078305,-490.0,0.00027945,3]
[367131055,1750665078315,-490.0,0.00027945,3]
[367131056,1750665078325,-490.0,0.00027945,3]
[367131057,1750665078334,-490.0,0.00027945,3]
[367131058,1750665078344,-682.57,0.00027945,3]
[367131059,1750665078353,-362.59610965,0.00027945,3]
[367131060,1750665078363,-490.0,0.00027945,3]
[367131061,1750665078372,-490.0,0.00027945,3]
[367131062,1750665078382,-1697.22,0.00027945,3]
[367131063,1750665078392,-490.0,0.00027945,3]
[367131064,1750665078402,-490.0,0.00027945,3]
[367131065,1750665078411,-490.0,0.00027945,3]
[367131066,1750665078422,-490.0,0.00027945,3]
[367131067,1750665078431,-490.0,0.00027945,3]
[367131068,1750665078440,-880.29,0.00027945,3]
[367131069,1750665078450,-490.0,0.00027945,3]
[367131070,1750665078459,-1269.91,0.00027945,3]
[367131071,1750665078469,-710.25,0.00027945,3]
[367131072,1750665078478,-490.0,0.00027945,3]
[367131073,1750665078489,-813.4,0.00027945,3]
[367131074,1750665078499,-490.0,0.00027945,3]
[367131075,1750665078509,-490.0,0.00027945,3]
[367131076,1750665078519,-2095.98,0.00027945,3]
[367131077,1750665078536,-497.75667788,0.00027945,3]
[367131078,1750665078546,-490.0,0.00027945,3]
[367131079,1750665078557,-860.56,0.00027945,3]
[367131080,1750665078567,-490.0,0.00027945,3]
[367131081,1750665078576,-490.0,0.00027945,3]
[367131082,1750665078586,-1189.08,0.00027945,3]
[367131083,1750665078596,-490.0,0.00027945,3]
[367131084,1750665078606,-607.31680264,0.00027945,3]
[367131085,1750665078616,-490.0,0.00027945,3]
[367131086,1750665078625,-592.68,0.00027945,3]
[367131087,1750665078636,-490.0,0.00027945,3]
[367131088,1750665078646,-490.0,0.00027945,3]
[367131089,1750665078656,-693.19,0.00027945,2]
[367131090,1750665078665,-1404.19,0.00027945,3]
[367131091,1750665078675,-490.0,0.00027945,3]
[367131092,1750665078685,-490.0,0.00027945,3]
[367131093,1750665078695,-490.0,0.00027945,3]
[367131094,1750665078704,-490.0,0.00027945,3]
[367131095,1750665078714,-1041.14,0.00027945,3]
[367131096,1750665078724,-490.0,0.00027945,3]
[367131097,1750665078734,-490.0,0.00027945,3]
[367131098,1750665078744,-1153.44,0.00027945,3]
[367131099,1750665078755,-562.57,0.00027945,3]
[367131100,1750665078765,-490.0,0.00027945,3]
[367131101,1750665078775,-490.0,0.00027945,3]
[367131102,1750665078785,-490.0,0.00027945,3]
[367131103,1750665078795,-490.0,0.00027945,3]
[367131104,1750665078805,-490.0,0.00027945,3]
[367131105,1750665078815,-1104.92,0.00027945,3]
[367131106,1750665078825,-519.72,0.00027945,3]
[367131107,1750665078834,-490.0,0.00027945,3]
[367131108,1750665078844,-1408.6,0.00027945,3]
[367131109,1750665078853,-490.0,0.00027945,3]
[367131110,1750665078863,-490.0,0.00027945,3]
[367131111,1750665078872,-490.0,0.00027945,3]
[367131112,1750665078882,-457.62517497,0.00027945,3]
[367131113,1750665078891,-490.0,0.00027945,2]
[367131114,1750665078901,-490.0,0.00027945,3]
[367131115,1750665078911,-637.59713386,0.00027945,3]
[367131116,1750665078921,-1311.06,0.00027945,3]
[367131117,1750665078936,-490.0,0.00027945,3]
[367131118,1750665078946,-490.0,0.00027945,3]
[367131119,1750665078955,-490.0,0.00027945,2]
[367131120,1750665078965,-499.99929439,0.00027945,3]
[367131121,1750665078975,-490.0,0.00027945,3]
[367131122,1750665078984,-1143.07,0.00027945,3]
[367131123,1750665078994,-490.0,0.00027945,3]
[367131124,1750665079006,-490.0,0.00027945,3]
[367131125,1750665079017,-1915.03,0.00027945,3]
[367131126,1750665079027,-490.0,0.00027945,3]
[367131127,1750665079037,-490.0,0.00027945,3]
[367131128,1750665079047,-479.49406105,0.00027945,3]
[367131129,1750665079057,-1096.22,0.00027945,3]
[367131130,1750665079066,-633.29192319,0.00027945,3]
[367131131,1750665079076,-1133.12,0.00027945,3]
[367131132,1750665079086,-763.88,0.00027945,3]
[367131133,1750665079096,-490.0,0.00027945,3]
[367131134,1750665079106,-490.0,0.00027945,3]
[367131135,1750665079116,-490.0,0.00027945,3]
[367131136,1750665079125,-490.0,0.00027945,3]
[367131137,1750665079135,-1026.56,0.00027945,3]
[367131138,1750665079145,-490.0,0.00027945,3]
[367131139,1750665079154,-490.0,0.00027945,3]
[367131140,1750665079164,-1230.65,0.00027945,3]
[367131141,1750665079173,-1008.53,0.00027945,3]
[367131142,1750665079182,-490.0,0.00027945,3]
[367131143,1750665079192,-300.0,0.00027945,3]
[367131144,1750665079202,-490.0,0.00027945,3]
[367131145,1750665079211,-1722.2,0.00027945,3]
[367131146,1750665079221,-490.0,0.00027945,3]
[367131147,1750665079231,-1588.78,0.00027945,3]
[367131148,1750665079240,-490.0,0.00027945,3]
[367131149,1750665079250,-490.0,0.00027945,3]
[367131150,1750665079259,-490.0,0.00027945,3]
[367131151,1750665079269,-490.0,0.00027945,3]
[367131152,1750665079279,-490.0,0.00027945,3]
[367131153,1750665079288,-896.42,0.00027945,3]
[367131154,1750665079298,-490.0,0.00027945,3]
[367131155,1750665079308,-961.21,0.00027945,3]
[367131156,1750665079318,-490.0,0.00027945,3]
[367131157,1750665079329,-490.0,0.00027945,3]
[367131158,1750665079338,-490.0,0.00027945,3]
[367131159,1750665079347,-633.05,0.00027945,3]
[367131160,1750665079357,-1367.92,0.00027945,3]
[367131161,1750665079366,-490.0,0.00027945,3]
[367131162,1750665079376,-844.81,0.00027945,3]
[367131163,1750665079386,-542.77,0.00027945,3]
[367131164,1750665079395,-490.0,0.00027945,3]
[367131165,1750665079405,-611.73,0.00027945,3]
[367131166,1750665079415,-490.0,0.00027945,3]
[367131167,1750665079425,-807.21,0.00027945,3]
[367131168,1750665079434,-490.0,0.00027945,3]
[367131169,1750665079444,-490.0,0.00027945,3]
[367131170,1750665079453,-956.99,0.00027945,3]
[367131171,1750665079463,-490.0,0.00027945,3]
[367131172,1750665079472,-1617.12,0.00027945,3]
[367131173,1750665079482,-462.58376957,0.00027945,3]
[367131174,1750665079491,-490.0,0.00027945,3]
[367131175,1750665079500,-490.0,0.00027945,3]
[367131176,1750665079509,-490.0,0.00027945,3]
[367131177,1750665079518,-519.34,0.00027945,3]
[367131178,1750665079527,-490.0,0.00027945,3]
[367131179,1750665079537,-848.71,0.00027945,3]
[367131180,1750665079546,-790.76,0.00027945,3]
[367131181,1750665079557,-613.34,0.00027945,3]
[367131182,1750665079566,-501.56211266,0.00027945,3]
[367131183,1750665079576,-490.0,0.00027945,3]
[367131184,1750665079585,-742.62,0.00027945,3]
[367131185,1750665079594,-2760.23,0.00027945,3]
[367131186,1750665079604,-2345.46,0.00027945,2]
[367131187,1750665079613,-490.0,0.00027945,3]
[367131188,1750665079623,-534.89923975,0.00027945,3]
[367131189,1750665079632,-1288.97,0.00027945,3]
[367131190,1750665079642,-1422.0,0.00027945,3]
[367131191,1750665079651,-367.97732802,0.00027945,3]
[367131192,1750665079662,-1019.17,0.00027945,3]
[367131193,1750665079672,-490.0,0.00027945,3]
[367131194,1750665079682,-1327.38,0.00027945,3]
[367131195,1750665079691,-490.0,0.00027945,3]
[367131196,1750665079781,-490.0,0.00027945,3]
[367131197,1750665079791,-608.9,0.00027945,3]
[367131198,1750665079801,-490.0,0.00027945,3]
[367131199,1750665079811,-490.0,0.00027945,3]
[367131200,1750665079820,-490.0,0.00027945,3]
[367131201,1750665079829,-490.0,0.00027945,3]
[367131202,1750665079839,-1180.83,0.00027945,3]
[367131203,1750665079848,-490.0,0.00027945,3]
[367131204,1750665079857,-490.0,0.00027945,3]
[367131205,1750665079867,-490.0,0.00027945,3]
[367131206,1750665079876,-692.81,0.00027945,3]
[367131207,1750665079886,-490.0,0.00027945,3]
[367131208,1750665079895,-490.0,0.00027945,3]
[367131209,1750665079905,-490.0,0.00027945,3]
[367131210,1750665079914,-778.5,0.00027945,3]
[367131211,1750665079925,-502.87266091,0.00027945,3]
[367131212,1750665079935,-490.0,0.00027945,3]
[367131213,1750665079945,-1065.89,0.00027945,3]
[367131214,1750665079954,-665.43,0.00027945,3]
[367131215,1750665079963,-637.7,0.00027945,3]
[367131216,1750665079974,-490.0,0.00027945,3]
[367131217,1750665079983,-490.0,0.00027945,3]
[367131218,1750665079992,-490.0,0.00027945,3]
[367131219,1750665080002,-490.0,0.00027945,3]
[367131220,1750665080011,-490.0,0.00027945,3]
[367131221,1750665080020,-1166.57,0.00027945,3]
[367131222,1750665080029,-625.83,0.00027945,3]
[367131223,1750665080038,-1508.28,0.00027945,3]
[367131224,1750665080047,-526.99,0.00027945,3]
[367131225,1750665080056,-613.21,0.00027945,3]
[367131226,1750665080065,-1559.17,0.00027945,3]
[367131227,1750665080074,-490.0,0.00027945,3]
[367131228,1750665080083,-610.21,0.00027945,3]
[367131229,1750665080093,-714.94,0.00027945,3]
[367131230,1750665080103,-963.94,0.00027945,3]
[367131231,1750665080112,-868.65,0.00027945,3]
[367131232,1750665080121,-490.0,0.00027945,3]
[367131233,1750665080131,-1081.49,0.00027945,3]
[367131234,1750665080140,-490.0,0.00027945,3]
[367131235,1750665080149,-566.45,0.00027945,3]
[367131236,1750665080158,-1232.32,0.00027945,3]
[367131237,1750665080167,-1100.0,0.00027945,3]
[367131238,1750665080176,-1694.0,0.00027945,3]
[367131239,1750665080185,-490.0,0.00027945,3]
[367131240,1750665080194,-490.0,0.00027945,3]
[367131241,1750665080203,-1228.14,0.00027945,3]
[367131242,1750665080213,-490.0,0.00027945,3]
[367131243,1750665080222,-818.43,0.00027945,3]
[367131244,1750665080231,-490.0,0.00027945,3]
[367131245,1750665080241,-490.0,0.00027945,3]
[367131246,1750665080250,-234.90411573,0.00027945,3]
[367131247,1750665080260,-490.0,0.00027945,3]
[367131248,1750665080269,-490.0,0.00027945,3]
[367131249,1750665080278,-835.03,0.00027945,3]
[367131250,1750665080287,-551.94,0.00027945,3]
[367131251,1750665080296,-490.0,0.00027945,3]
[367131252,1750665080306,-490.0,0.00027945,3]
[367131253,1750665080315,-490.0,0.00027945,3]
[367131254,1750665080324,-490.0,0.00027945,3]
[367131255,1750665080333,-490.0,0.00027945,3]
[367131256,1750665080342,-501.3889969,0.00027945,3]
[367131257,1750665080351,-490.0,0.00027945,3]
[367131258,1750665080361,-1222.96,0.00027945,3]
[367131259,1750665080370,-490.0,0.00027945,3]
[367131260,1750665080379,-490.0,0.00027945,3]
[367131261,1750665080388,-490.0,0.00027945,3]
[367131262,1750665080397,-490.0,0.00027945,3]
[367131263,1750665080406,-880.33,0.00027945,3]
[367131264,1750665080415,-490.0,0.00027945,3]
[367131265,1750665080424,-1308.03,0.00027945,3]
[367131266,1750665080433,-490.0,0.00027945,3]
[367131267,1750665080442,-490.0,0.00027945,3]
[367131268,1750665080452,-490.0,0.00027945,3]
[367131269,1750665080462,-749.38,0.00027945,3]
[367131270,1750665080470,-490.0,0.00027945,3]
[367131271,1750665080479,-355.50919207,0.00027945,3]
[367131272,1750665080488,-490.0,0.00027945,3]
[367131273,1750665080497,-514.11610339,0.00027945,3]
[367131274,1750665080506,-906.2,0.00027945,3]
[367131275,1750665080515,-490.0,0.00027945,3]
[367131276,1750665080524,-632.2,0.00027945,3]
[367131277,1750665080534,-736.07,0.00027945,3]
[367131278,1750665080543,-490.0,0.00027945,3]
[367131279,1750665080552,-490.0,0.00027945,3]
[367131280,1750665080561,-490.0,0.00027945,3]
[367131281,1750665080570,-1159.93,0.00027945,3]
[367131282,1750665080580,-490.0,0.00027945,3]
[367131283,1750665080589,-490.0,0.00027945,3]
[367131284,1750665080599,-717.88,0.00027945,3]
[367131285,1750665080608,-490.0,0.00027945,3]
[367131286,1750665080618,-490.0,0.00027945,3]
[367131287,1750665080627,-490.0,0.00027945,3]
[367131288,1750665080636,-793.46,0.00027945,3]
[367131289,1750665080645,-490.0,0.00027945,3]
[367131290,1750665080655,-490.0,0.00027945,3]
[367131291,1750665080664,-1185.89,0.00027945,3]
[367131292,1750665080674,-490.0,0.00027945,3]
[367131293,1750665080683,-1745.89,0.00027945,3]
[367131294,1750665080692,-490.0,0.00027945,3]
[367131295,1750665080702,-1156.86,0.00027945,3]
[367131296,1750665080711,-490.0,0.00027945,3]
[367131297,1750665080720,-490.0,0.00027945,3]
[367131298,1750665080729,-991.3,0.00027945,3]
[367131299,1750665080738,-490.0,0.00027945,3]
[367131300,1750665080747,-490.0,0.00027945,3]
[367131301,1750665080756,-490.0,0.00027945,3]
[367131302,1750665080765,-490.0,0.00027945,3]
[367131303,1750665080775,-490.0,0.00027945,3]
[367131304,1750665080784,-648.95,0.00027945,3]
[367131305,1750665080793,-815.02,0.00027945,3]
[367131306,1750665080804,-830.59,0.00027945,3]
[367131307,1750665080813,-490.0,0.00027945,3]
[367131308,1750665080824,-490.0,0.00027945,3]
[367131309,1750665080834,-490.0,0.00027945,3]
[367131310,1750665080843,-1055.32,0.00027945,3]
[367131311,1750665080853,-490.0,0.00027945,3]
[367131312,1750665080862,-490.0,0.00027945,3]
[367131313,1750665080872,-490.0,0.00027945,3]
[367131314,1750665080882,-599.34,0.00027945,3]
[367131315,1750665080891,-1112.63,0.00027945,3]
[367131316,1750665080900,-243.97615786,0.00027945,3]
[367131317,1750665080909,-490.0,0.00027945,3]
[367131318,1750665080918,-200.0,0.00027945,3]
[367131319,1750665080932,-490.0,0.00027945,3]
[367131320,1750665080942,-1313.29,0.00027945,3]
[367131321,1750665080951,-573.3,0.00027945,3]
[367131322,1750665080960,-490.0,0.00027945,3]
[367131323,1750665080969,-490.0,0.00027945,3]
[367131324,1750665080979,-546.93,0.00027945,3]
[367131325,1750665080989,-490.0,0.00027945,3]
[367131326,1750665080999,-878.57,0.00027945,3]
[367131327,1750665081009,-1631.12,0.00027945,3]
[367131328,1750665081020,-490.0,0.00027945,3]
[367131329,1750665081029,-490.0,0.00027945,3]
[367131330,1750665081038,-735.78,0.00027945,3]
[367131331,1750665081048,-636.12,0.00027945,3]
[367131332,1750665081059,-2393.15,0.00027945,3]
[367131333,1750665081068,-490.0,0.00027945,3]
[367131334,1750665081077,-490.0,0.00027945,3]
[367131335,1750665081086,-490.0,0.00027945,3]
[367131336,1750665081096,-490.0,0.00027945,3]